[Event "*** Titled Tuesday Blitz"]
[Site "Chess.com"]
[Date "2020.11.03"]
[Round "4"]
[White "Mikhal867"]
[Black "starworld123"]
[Result "1-0"]
[WhiteElo "2371"]
[BlackElo "2651"]
[TimeControl "180+1"]
[EndTime "10:39:19 PST"]
[Termination "Mikhal867 won by checkmate"]

1. c4 {[%clk 0:03:00.9]} 1... e6 {[%clk 0:03:00.9]} 2. g3 {[%clk 0:03:00]} 2...
d5 {[%clk 0:03:01.8]} 3. Bg2 {[%clk 0:02:59.2]} 3... Nf6 {[%clk 0:03:02.7]} 4.
Nf3 {[%clk 0:02:56.7]} 4... d4 {[%clk 0:03:03.6]} 5. O-O {[%clk 0:02:55.4]} 5...
c5 {[%clk 0:03:04.5]} 6. d3 {[%clk 0:02:54.1]} 6... Nc6 {[%clk 0:03:04.4]} 7. e3
{[%clk 0:02:54.3]} 7... Bd6 {[%clk 0:03:01.8]} 8. exd4 {[%clk 0:02:52.5]} 8...
cxd4 {[%clk 0:03:02.7]} 9. Re1 {[%clk 0:02:51.5]} 9... O-O {[%clk 0:03:02.6]}
10. a3 {[%clk 0:02:45.9]} 10... a5 {[%clk 0:03:02.1]} 11. Bg5 {[%clk 0:02:42.8]}
11... h6 {[%clk 0:03:02.4]} 12. Bxf6 {[%clk 0:02:42.3]} 12... Qxf6 {[%clk
0:03:03.3]} 13. Nbd2 {[%clk 0:02:42.3]} 13... Qd8 {[%clk 0:02:57.7]} 14. Ne4
{[%clk 0:02:39.7]} 14... Be7 {[%clk 0:02:57.8]} 15. Re2 {[%clk 0:02:23.1]} 15...
e5 {[%clk 0:02:57.7]} 16. Qe1 {[%clk 0:02:18.4]} 16... Bg4 {[%clk 0:02:54.8]}
17. h3 {[%clk 0:02:17.7]} 17... Bf5 {[%clk 0:02:50.8]} 18. g4 {[%clk 0:02:15.8]}
18... Bg6 {[%clk 0:02:49.2]} 19. Rb1 {[%clk 0:02:07.5]} 19... a4 {[%clk
0:02:48.7]} 20. Rd1 {[%clk 0:01:54.2]} 20... f6 {[%clk 0:02:46.9]} 21. Nh4
{[%clk 0:01:50.7]} 21... Bh7 {[%clk 0:02:46.1]} 22. Ng3 {[%clk 0:01:48.1]} 22...
Qa5 {[%clk 0:02:45.3]} 23. Be4 {[%clk 0:01:46]} 23... Qxe1+ {[%clk 0:02:43.2]}
24. Rexe1 {[%clk 0:01:43.2]} 24... Bxe4 {[%clk 0:02:44.1]} 25. Nxe4 {[%clk
0:01:40.2]} 25... Nd8 {[%clk 0:02:45]} 26. Nf5 {[%clk 0:01:36]} 26... Rf7 {[%clk
0:02:45.9]} 27. f4 {[%clk 0:01:30.1]} 27... exf4 {[%clk 0:02:46.8]} 28. Nxe7+
{[%clk 0:01:28.8]} 28... Rxe7 {[%clk 0:02:46]} 29. Nxf6+ {[%clk 0:01:28.8]}
29... Kf7 {[%clk 0:02:46.7]} 30. Rxe7+ {[%clk 0:01:24.8]} 30... Kxe7 {[%clk
0:02:47.6]} 31. Nd5+ {[%clk 0:01:24.8]} 31... Kd6 {[%clk 0:02:48.5]} 32. Nxf4
{[%clk 0:01:23.9]} 32... g5 {[%clk 0:02:49.4]} 33. Nd5 {[%clk 0:01:16.2]} 33...
Ne6 {[%clk 0:02:50.3]} 34. Re1 {[%clk 0:01:12.1]} 34... Nc5 {[%clk 0:02:50.6]}
35. Nb4 {[%clk 0:01:04.4]} 35... Rf8 {[%clk 0:02:51]} 36. Rf1 {[%clk 0:01:02.9]}
36... Re8 {[%clk 0:02:49.9]} 37. Rf6+ {[%clk 0:01:01.8]} 37... Ke5 {[%clk
0:02:42.8]} 38. Rf5+ {[%clk 0:00:57.7]} 38... Kd6 {[%clk 0:02:42.4]} 39. Rd5+
{[%clk 0:00:57.5]} 39... Ke6 {[%clk 0:02:43]} 40. Rxc5 {[%clk 0:00:57.3]} 40...
Rf8 {[%clk 0:02:43.9]} 41. Rf5 {[%clk 0:00:56]} 41... Re8 {[%clk 0:02:42.2]} 42.
Nc2 {[%clk 0:00:54.3]} 42... Kd6 {[%clk 0:02:41.1]} 43. Nxd4 {[%clk 0:00:52.8]}
43... Re3 {[%clk 0:02:42]} 44. Rf3 {[%clk 0:00:51.8]} 44... Re1+ {[%clk
0:02:41.2]} 45. Kg2 {[%clk 0:00:50.1]} 45... Rd1 {[%clk 0:02:41]} 46. Nf5+
{[%clk 0:00:49.2]} 46... Ke5 {[%clk 0:02:40.7]} 47. Re3+ {[%clk 0:00:46.7]}
47... Kf4 {[%clk 0:02:39.7]} 48. Re4# {[%clk 0:00:46.1]} 1-0

[Event "*** Titled Tuesday Blitz"]
[Site "Chess.com"]
[Date "2020.11.03"]
[Round "4"]
[White "Ural_bogatyr"]
[Black "JiiHart"]
[Result "1-0"]
[WhiteElo "2384"]
[BlackElo "2086"]
[TimeControl "180+1"]
[EndTime "10:39:20 PST"]
[Termination "Ural_bogatyr won by resignation"]

1. e4 {[%clk 0:02:58.8]} 1... c5 {[%clk 0:02:59.3]} 2. Nf3 {[%clk 0:02:58.2]}
2... Nc6 {[%clk 0:02:59.3]} 3. Bb5 {[%clk 0:02:58.6]} 3... g6 {[%clk 0:02:59.1]}
4. O-O {[%clk 0:02:57.7]} 4... Bg7 {[%clk 0:02:58.8]} 5. c3 {[%clk 0:02:58.2]}
5... Nf6 {[%clk 0:02:57.7]} 6. Re1 {[%clk 0:02:57.2]} 6... O-O {[%clk
0:02:56.2]} 7. d4 {[%clk 0:02:57.5]} 7... cxd4 {[%clk 0:02:49.5]} 8. cxd4 {[%clk
0:02:58.4]} 8... d5 {[%clk 0:02:49.8]} 9. exd5 {[%clk 0:02:54.9]} 9... Nxd5
{[%clk 0:02:48.4]} 10. Nc3 {[%clk 0:02:54.7]} 10... Bg4 {[%clk 0:02:24.9]} 11.
Be3 {[%clk 0:02:50.6]} 11... Rc8 {[%clk 0:01:55.9]} 12. h3 {[%clk 0:02:46]}
12... Bxf3 {[%clk 0:01:23.6]} 13. Qxf3 {[%clk 0:02:46.9]} 13... e6 {[%clk
0:01:23.7]} 14. Rad1 {[%clk 0:02:41.1]} 14... Nxc3 {[%clk 0:01:11.4]} 15. bxc3
{[%clk 0:02:40.1]} 15... a6 {[%clk 0:01:11.9]} 16. Ba4 {[%clk 0:02:35.4]} 16...
Qa5 {[%clk 0:01:10.6]} 17. Bb3 {[%clk 0:02:31.8]} 17... Qxc3 {[%clk 0:01:06.7]}
18. d5 {[%clk 0:02:32]} 18... Ne5 {[%clk 0:00:49.5]} 19. Qe4 {[%clk 0:02:28]}
19... exd5 {[%clk 0:00:44.8]} 20. Bxd5 {[%clk 0:02:27.4]} 20... b5 {[%clk
0:00:32.6]} 21. Bd4 {[%clk 0:02:24.8]} 21... Qc2 {[%clk 0:00:12.3]} 22. Bxe5
{[%clk 0:02:22.6]} 22... Bxe5 {[%clk 0:00:09.5]} 23. Qxc2 {[%clk 0:02:20.6]}
23... Rxc2 {[%clk 0:00:08.8]} 24. Rxe5 {[%clk 0:02:21]} 1-0

[Event "*** Titled Tuesday Blitz"]
[Site "Chess.com"]
[Date "2020.11.03"]
[Round "4"]
[White "bratkoo"]
[Black "vanea_03"]
[Result "0-1"]
[WhiteElo "2507"]
[BlackElo "2728"]
[TimeControl "180+1"]
[EndTime "10:39:28 PST"]
[Termination "vanea_03 won by resignation"]

1. e4 {[%clk 0:02:44.1]} 1... e5 {[%clk 0:02:45.8]} 2. Nf3 {[%clk 0:02:44]} 2...
Nc6 {[%clk 0:02:45.7]} 3. Bc4 {[%clk 0:02:42.9]} 3... Nf6 {[%clk 0:02:45.5]} 4.
d3 {[%clk 0:02:42.9]} 4... Bc5 {[%clk 0:02:45]} 5. O-O {[%clk 0:02:43.2]} 5...
a6 {[%clk 0:02:44.9]} 6. c3 {[%clk 0:02:41.4]} 6... O-O {[%clk 0:02:37.3]} 7. d4
{[%clk 0:02:26.9]} 7... Ba7 {[%clk 0:02:30.9]} 8. dxe5 {[%clk 0:02:19.4]} 8...
Nxe4 {[%clk 0:02:31]} 9. Bd3 {[%clk 0:02:20]} 9... d5 {[%clk 0:02:17.4]} 10.
exd6 {[%clk 0:02:20.1]} 10... Nxd6 {[%clk 0:02:13.2]} 11. Bxh7+ {[%clk
0:01:55.3]} 11... Kxh7 {[%clk 0:02:12.7]} 12. Ng5+ {[%clk 0:01:55.7]} 12... Kg6
{[%clk 0:01:53.4]} 13. h4 {[%clk 0:01:53.9]} 13... Bf5 {[%clk 0:01:46.2]} 14.
h5+ {[%clk 0:01:33]} 14... Kf6 {[%clk 0:01:43.8]} 15. Re1 {[%clk 0:01:33.4]}
15... Re8 {[%clk 0:01:27.9]} 16. Nh7+ {[%clk 0:01:32.1]} 16... Bxh7 {[%clk
0:01:24.1]} 17. Qf3+ {[%clk 0:01:11.2]} 17... Bf5 {[%clk 0:01:15.3]} 18. Bg5+
{[%clk 0:01:04.6]} 18... Kxg5 {[%clk 0:01:14.2]} 19. Qg3+ {[%clk 0:01:05]} 19...
Kxh5 {[%clk 0:01:11.7]} 0-1

[Event "*** Titled Tuesday Blitz"]
[Site "Chess.com"]
[Date "2020.11.03"]
[Round "4"]
[White "Karacsonyi_Gellert"]
[Black "Rital44"]
[Result "1-0"]
[WhiteElo "2670"]
[BlackElo "2478"]
[TimeControl "180+1"]
[EndTime "10:39:42 PST"]
[Termination "Karacsonyi_Gellert won by resignation"]

1. e4 {[%clk 0:03:00.9]} 1... e5 {[%clk 0:02:59.6]} 2. Nf3 {[%clk 0:03:00.1]}
2... Nc6 {[%clk 0:02:59.8]} 3. Bb5 {[%clk 0:03:00.7]} 3... a6 {[%clk 0:03:00.1]}
4. Bxc6 {[%clk 0:03:01.2]} 4... dxc6 {[%clk 0:02:59.5]} 5. O-O {[%clk
0:03:02.1]} 5... f6 {[%clk 0:02:58.5]} 6. d4 {[%clk 0:03:01.9]} 6... Bg4 {[%clk
0:02:58.8]} 7. dxe5 {[%clk 0:03:01.6]} 7... Qxd1 {[%clk 0:02:59.7]} 8. Rxd1
{[%clk 0:03:02.2]} 8... fxe5 {[%clk 0:03:00.4]} 9. Rd3 {[%clk 0:03:01.9]} 9...
Bd6 {[%clk 0:03:00.9]} 10. Nbd2 {[%clk 0:03:01.1]} 10... Nf6 {[%clk 0:03:01.1]}
11. Nc4 {[%clk 0:03:01.6]} 11... O-O {[%clk 0:02:47.5]} 12. Ncxe5 {[%clk
0:02:56.2]} 12... Rae8 {[%clk 0:02:39.8]} 13. Nxg4 {[%clk 0:02:50.6]} 13... Nxg4
{[%clk 0:02:40.7]} 14. h3 {[%clk 0:02:49.4]} 14... Nf6 {[%clk 0:02:35.1]} 15. e5
{[%clk 0:02:42.7]} 15... Bxe5 {[%clk 0:02:34.8]} 16. Nxe5 {[%clk 0:02:43.3]}
16... Rxe5 {[%clk 0:02:35.7]} 17. Bf4 {[%clk 0:02:43.9]} 17... Re7 {[%clk
0:02:34.8]} 18. Bg5 {[%clk 0:02:36.1]} 18... Re2 {[%clk 0:02:33.7]} 19. Rd2
{[%clk 0:02:19.8]} 19... Rfe8 {[%clk 0:02:32.2]} 20. Rad1 {[%clk 0:02:09]} 20...
Re1+ {[%clk 0:02:22.7]} 21. Kh2 {[%clk 0:02:08.7]} 21... R8e2 {[%clk 0:02:20.5]}
22. Bxf6 {[%clk 0:01:56.2]} 22... gxf6 {[%clk 0:02:20.4]} 23. Rd8+ {[%clk
0:01:49.9]} 23... Kf7 {[%clk 0:02:20.5]} 24. R1d7+ {[%clk 0:01:49.7]} 24... Kg6
{[%clk 0:02:18.9]} 25. Rg8+ {[%clk 0:01:43.7]} 25... Kf5 {[%clk 0:02:18.3]} 26.
Rxh7 {[%clk 0:01:20]} 26... Rxf2 {[%clk 0:02:04.2]} 27. Rh5+ {[%clk 0:01:20.1]}
27... Kf4 {[%clk 0:02:04.4]} 28. Rh4+ {[%clk 0:01:13.4]} 28... Kf5 {[%clk
0:02:01.2]} 29. Rh5+ {[%clk 0:00:42.7]} 29... Kf4 {[%clk 0:02:00.7]} 30. Rg4+
{[%clk 0:00:41.3]} 30... Ke3 {[%clk 0:02:00.6]} 31. Rc5 {[%clk 0:00:39.7]} 31...
f5 {[%clk 0:01:54.6]} 32. Re5+ {[%clk 0:00:34.8]} 32... Kd2 {[%clk 0:01:49.6]}
33. Rd4+ {[%clk 0:00:35.3]} 1-0

[Event "*** Titled Tuesday Blitz"]
[Site "Chess.com"]
[Date "2020.11.03"]
[Round "4"]
[White "maximnovik"]
[Black "chito89"]
[Result "0-1"]
[WhiteElo "2527"]
[BlackElo "2784"]
[TimeControl "180+1"]
[EndTime "10:39:52 PST"]
[Termination "chito89 won by resignation"]

1. d4 {[%clk 0:03:00.9]} 1... Nf6 {[%clk 0:02:57.2]} 2. c4 {[%clk 0:03:00.5]}
2... e6 {[%clk 0:02:57.5]} 3. Nc3 {[%clk 0:02:58.7]} 3... Bb4 {[%clk 0:02:56.7]}
4. e3 {[%clk 0:02:58.9]} 4... O-O {[%clk 0:02:55]} 5. Bd3 {[%clk 0:02:59]} 5...
b6 {[%clk 0:02:51.1]} 6. Ne2 {[%clk 0:02:58.9]} 6... d5 {[%clk 0:02:49.3]} 7.
cxd5 {[%clk 0:02:56.9]} 7... exd5 {[%clk 0:02:48.5]} 8. O-O {[%clk 0:02:57.4]}
8... Ba6 {[%clk 0:02:47.1]} 9. Bxa6 {[%clk 0:02:50.3]} 9... Nxa6 {[%clk
0:02:48]} 10. Qd3 {[%clk 0:02:49.2]} 10... Qc8 {[%clk 0:02:46.3]} 11. f3 {[%clk
0:02:49.2]} 11... c5 {[%clk 0:02:38.5]} 12. Ng3 {[%clk 0:02:48.1]} 12... Re8
{[%clk 0:02:15.3]} 13. Bd2 {[%clk 0:02:43.7]} 13... cxd4 {[%clk 0:02:00.3]} 14.
exd4 {[%clk 0:02:41.6]} 14... Qc4 {[%clk 0:02:00.9]} 15. Qxc4 {[%clk 0:02:25.2]}
15... dxc4 {[%clk 0:02:01.8]} 16. Nge4 {[%clk 0:02:24.9]} 16... Nxe4 {[%clk
0:01:52.6]} 17. fxe4 {[%clk 0:02:15.7]} 17... Bxc3 {[%clk 0:01:51.5]} 18. bxc3
{[%clk 0:02:06.7]} 18... Rxe4 {[%clk 0:01:52.4]} 19. Rfe1 {[%clk 0:02:03.1]}
19... Rae8 {[%clk 0:01:51.7]} 20. Rxe4 {[%clk 0:02:02.7]} 20... Rxe4 {[%clk
0:01:52.6]} 21. Kf2 {[%clk 0:02:01.4]} 21... Nc7 {[%clk 0:01:52.4]} 22. a4
{[%clk 0:02:00.8]} 22... f6 {[%clk 0:01:39.5]} 23. Rb1 {[%clk 0:01:56.9]} 23...
Kf7 {[%clk 0:01:36.9]} 24. a5 {[%clk 0:01:56.3]} 24... b5 {[%clk 0:01:35.4]} 25.
Kf3 {[%clk 0:01:56.7]} 25... f5 {[%clk 0:01:32]} 26. Bf4 {[%clk 0:01:55.9]}
26... Nd5 {[%clk 0:01:30.5]} 27. Bd2 {[%clk 0:01:55.5]} 27... a6 {[%clk
0:01:30]} 28. h3 {[%clk 0:01:49.6]} 28... h5 {[%clk 0:01:28.1]} 29. Rg1 {[%clk
0:01:48.2]} 29... Ke6 {[%clk 0:01:18.7]} 30. g4 {[%clk 0:01:47.7]} 30... hxg4+
{[%clk 0:01:18.7]} 31. hxg4 {[%clk 0:01:47.9]} 31... Rxg4 {[%clk 0:01:19.5]} 32.
Rxg4 {[%clk 0:01:47.8]} 32... fxg4+ {[%clk 0:01:18.9]} 33. Kxg4 {[%clk
0:01:48.3]} 33... Nf6+ {[%clk 0:01:15.2]} 34. Kf4 {[%clk 0:01:47.2]} 34... Kd5
{[%clk 0:01:15.7]} 35. Kf5 {[%clk 0:01:47]} 35... Ne4 {[%clk 0:01:15.3]} 36. Be1
{[%clk 0:01:46.3]} 36... b4 {[%clk 0:01:03]} 37. cxb4 {[%clk 0:01:45.5]} 37...
c3 {[%clk 0:01:03.9]} 38. b5 {[%clk 0:01:37.5]} 38... c2 {[%clk 0:01:03.7]} 0-1

[Event "*** Titled Tuesday Blitz"]
[Site "Chess.com"]
[Date "2020.11.03"]
[Round "4"]
[White "Sanan_Sjugirov"]
[Black "Heineccius"]
[Result "1-0"]
[WhiteElo "2841"]
[BlackElo "2538"]
[TimeControl "180+1"]
[EndTime "10:39:57 PST"]
[Termination "Sanan_Sjugirov won by resignation"]

1. d4 {[%clk 0:03:00.9]} 1... Nf6 {[%clk 0:02:58.7]} 2. c4 {[%clk 0:03:00.5]}
2... e6 {[%clk 0:02:57.3]} 3. Nf3 {[%clk 0:03:00.1]} 3... Bb4+ {[%clk
0:02:57.4]} 4. Nbd2 {[%clk 0:02:58.4]} 4... d5 {[%clk 0:02:56.1]} 5. e3 {[%clk
0:02:57.5]} 5... O-O {[%clk 0:02:51.7]} 6. Be2 {[%clk 0:02:52]} 6... b6 {[%clk
0:02:34.3]} 7. O-O {[%clk 0:02:51.3]} 7... Bb7 {[%clk 0:02:33.2]} 8. a3 {[%clk
0:02:50.3]} 8... Be7 {[%clk 0:02:30.9]} 9. b4 {[%clk 0:02:41.9]} 9... c6 {[%clk
0:02:10]} 10. Bb2 {[%clk 0:02:40.1]} 10... Nbd7 {[%clk 0:02:09]} 11. c5 {[%clk
0:02:37.7]} 11... a5 {[%clk 0:02:07.6]} 12. Bc3 {[%clk 0:02:35.2]} 12... Ba6
{[%clk 0:02:00.3]} 13. Bxa6 {[%clk 0:02:23]} 13... Rxa6 {[%clk 0:02:01.2]} 14.
Qe2 {[%clk 0:02:21.5]} 14... Qa8 {[%clk 0:01:48.4]} 15. cxb6 {[%clk 0:02:04.4]}
15... Nxb6 {[%clk 0:01:17.2]} 16. bxa5 {[%clk 0:02:02.2]} 16... Na4 {[%clk
0:01:17.2]} 17. Bb4 {[%clk 0:02:00.4]} 17... c5 {[%clk 0:01:06.8]} 18. dxc5
{[%clk 0:01:59.1]} 18... Bxc5 {[%clk 0:00:58.1]} 19. Rfc1 {[%clk 0:01:53.9]}
19... Nd7 {[%clk 0:00:47.8]} 20. Qb5 {[%clk 0:01:51.9]} 20... Bxb4 {[%clk
0:00:20.2]} 21. axb4 {[%clk 0:01:50.2]} 21... Nab6 {[%clk 0:00:18.5]} 22. Rc7
{[%clk 0:01:43.3]} 22... Rb8 {[%clk 0:00:15.4]} 23. Rac1 {[%clk 0:01:41]} 23...
Nc4 {[%clk 0:00:05.5]} 24. Qxd7 {[%clk 0:01:40.5]} 1-0

[Event "*** Titled Tuesday Blitz"]
[Site "Chess.com"]
[Date "2020.11.03"]
[Round "4"]
[White "GMartin_Petrov"]
[Black "MPGM"]
[Result "1-0"]
[WhiteElo "2616"]
[BlackElo "2448"]
[TimeControl "180+1"]
[EndTime "10:39:58 PST"]
[Termination "GMartin_Petrov won by resignation"]

1. d4 {[%clk 0:02:59.4]} 1... d5 {[%clk 0:02:59.4]} 2. Nf3 {[%clk 0:02:59.6]}
2... e6 {[%clk 0:02:59.2]} 3. e3 {[%clk 0:03:00]} 3... Nf6 {[%clk 0:02:58.8]} 4.
Bd3 {[%clk 0:03:00.4]} 4... c5 {[%clk 0:02:57.6]} 5. b3 {[%clk 0:03:00]} 5...
Be7 {[%clk 0:02:52]} 6. O-O {[%clk 0:02:59.9]} 6... O-O {[%clk 0:02:52.5]} 7.
Bb2 {[%clk 0:03:00.4]} 7... b6 {[%clk 0:02:52.5]} 8. Nbd2 {[%clk 0:03:00.5]}
8... Bb7 {[%clk 0:02:50]} 9. Ne5 {[%clk 0:02:58.9]} 9... Nc6 {[%clk 0:02:45.1]}
10. Qe2 {[%clk 0:02:52.6]} 10... Nb4 {[%clk 0:02:42]} 11. dxc5 {[%clk
0:02:37.8]} 11... Nxd3 {[%clk 0:02:37.3]} 12. cxd3 {[%clk 0:02:35.6]} 12... bxc5
{[%clk 0:02:33.8]} 13. e4 {[%clk 0:02:29.5]} 13... Nd7 {[%clk 0:02:28.1]} 14.
Nxd7 {[%clk 0:02:18.2]} 14... Qxd7 {[%clk 0:02:26.5]} 15. Qg4 {[%clk 0:02:17.7]}
15... f6 {[%clk 0:02:21.5]} 16. Rfe1 {[%clk 0:02:13.8]} 16... Rad8 {[%clk
0:01:58]} 17. Rad1 {[%clk 0:02:07.4]} 17... e5 {[%clk 0:01:55.2]} 18. Qe2 {[%clk
0:01:20.9]} 18... a5 {[%clk 0:01:45.5]} 19. a4 {[%clk 0:01:05.2]} 19... c4
{[%clk 0:01:29.9]} 20. bxc4 {[%clk 0:00:44.1]} 20... d4 {[%clk 0:01:29.3]} 21.
Nb3 {[%clk 0:00:37.6]} 21... Qxa4 {[%clk 0:01:26.2]} 22. Qc2 {[%clk 0:00:37.4]}
22... Bc6 {[%clk 0:01:21.5]} 23. Ra1 {[%clk 0:00:35.9]} 23... Qb4 {[%clk
0:01:18.9]} 24. Ba3 {[%clk 0:00:35.2]} 24... Qb7 {[%clk 0:01:18.5]} 25. Nxa5
{[%clk 0:00:34.9]} 1-0

[Event "*** Titled Tuesday Blitz"]
[Site "Chess.com"]
[Date "2020.11.03"]
[Round "4"]
[White "AsaHoffmann"]
[Black "MokshanovAlexey"]
[Result "0-1"]
[WhiteElo "2308"]
[BlackElo "2587"]
[TimeControl "180+1"]
[EndTime "10:40:04 PST"]
[Termination "MokshanovAlexey won by resignation"]

1. d4 {[%clk 0:02:56.3]} 1... d5 {[%clk 0:02:59.3]} 2. Bg5 {[%clk 0:02:55]} 2...
h6 {[%clk 0:02:58.9]} 3. Bh4 {[%clk 0:02:54.8]} 3... c5 {[%clk 0:02:59.1]} 4. e3
{[%clk 0:02:54.6]} 4... Qb6 {[%clk 0:02:59.3]} 5. b3 {[%clk 0:02:52]} 5... Nc6
{[%clk 0:02:59.1]} 6. c3 {[%clk 0:02:52]} 6... g5 {[%clk 0:02:50]} 7. Bg3 {[%clk
0:02:51.8]} 7... Bg7 {[%clk 0:02:50.5]} 8. Bd3 {[%clk 0:02:51]} 8... cxd4 {[%clk
0:02:40.5]} 9. exd4 {[%clk 0:02:50.5]} 9... Nxd4 {[%clk 0:02:40.6]} 10. cxd4
{[%clk 0:02:39.1]} 10... Qxd4 {[%clk 0:02:40.4]} 11. Ne2 {[%clk 0:02:37.5]}
11... Qxa1 {[%clk 0:02:36.3]} 12. Bb5+ {[%clk 0:02:35.6]} 12... Kf8 {[%clk
0:02:32.3]} 13. O-O {[%clk 0:02:35]} 13... Be6 {[%clk 0:01:52]} 14. a4 {[%clk
0:02:19.2]} 14... a6 {[%clk 0:01:43.3]} 15. Bd3 {[%clk 0:02:18.2]} 15... Nf6
{[%clk 0:01:13.8]} 16. Qd2 {[%clk 0:02:16.6]} 16... Ne4 {[%clk 0:01:04.4]} 17.
Bxe4 {[%clk 0:02:08.8]} 17... dxe4 {[%clk 0:01:04.5]} 18. Qb4 {[%clk 0:02:08.2]}
18... Qb2 {[%clk 0:00:51.2]} 19. Qxb7 {[%clk 0:02:02.8]} 19... Re8 {[%clk
0:00:48.2]} 20. Qxa6 {[%clk 0:01:57.7]} 20... Qxb3 {[%clk 0:00:43]} 21. a5
{[%clk 0:01:46]} 21... Bc4 {[%clk 0:00:40.5]} 22. Nd2 {[%clk 0:01:39]} 22...
Bxa6 {[%clk 0:00:39.8]} 23. Nxb3 {[%clk 0:01:38.7]} 23... Bxe2 {[%clk
0:00:40.4]} 24. Re1 {[%clk 0:01:38.3]} 24... Bd3 {[%clk 0:00:38.5]} 25. Nc5
{[%clk 0:01:37.4]} 25... f5 {[%clk 0:00:36.3]} 26. Bc7 {[%clk 0:01:34.8]} 26...
Kf7 {[%clk 0:00:31]} 27. a6 {[%clk 0:01:33.1]} 27... Rc8 {[%clk 0:00:29.9]} 28.
Bb6 {[%clk 0:01:31.8]} 28... Rxc5 {[%clk 0:00:29.7]} 29. Bxc5 {[%clk 0:01:31]}
29... Bxa6 {[%clk 0:00:30.3]} 30. f3 {[%clk 0:01:29.7]} 30... Rc8 {[%clk
0:00:28.7]} 0-1

[Event "*** Titled Tuesday Blitz"]
[Site "Chess.com"]
[Date "2020.11.03"]
[Round "4"]
[White "joppie2"]
[Black "suyu28"]
[Result "1-0"]
[WhiteElo "2868"]
[BlackElo "2642"]
[TimeControl "180+1"]
[EndTime "10:40:06 PST"]
[Termination "joppie2 won by resignation"]

1. e4 {[%clk 0:03:00.9]} 1... c6 {[%clk 0:02:56.1]} 2. Nc3 {[%clk 0:02:57.2]}
2... d5 {[%clk 0:02:55.8]} 3. Nf3 {[%clk 0:02:57.8]} 3... g6 {[%clk 0:02:56.2]}
4. h3 {[%clk 0:02:56]} 4... Bg7 {[%clk 0:02:56.1]} 5. d4 {[%clk 0:02:56.6]} 5...
dxe4 {[%clk 0:02:56.5]} 6. Nxe4 {[%clk 0:02:57.5]} 6... Nf6 {[%clk 0:02:56.2]}
7. Nxf6+ {[%clk 0:02:57.8]} 7... exf6 {[%clk 0:02:57.1]} 8. Bc4 {[%clk
0:02:55.7]} 8... O-O {[%clk 0:02:57.7]} 9. O-O {[%clk 0:02:56.3]} 9... a5 {[%clk
0:02:58.4]} 10. c3 {[%clk 0:02:55.2]} 10... Na6 {[%clk 0:02:58.9]} 11. Re1
{[%clk 0:02:54.8]} 11... Nc7 {[%clk 0:02:59.1]} 12. Bf4 {[%clk 0:02:55.3]} 12...
Nd5 {[%clk 0:02:59.2]} 13. Bg3 {[%clk 0:02:55.7]} 13... Be6 {[%clk 0:02:59]} 14.
a4 {[%clk 0:02:56.1]} 14... Nxc3 {[%clk 0:02:56.3]} 15. Qb3 {[%clk 0:02:54.9]}
15... Bxc4 {[%clk 0:02:45.5]} 16. Qxc4 {[%clk 0:02:55.8]} 16... Nd5 {[%clk
0:02:45.9]} 17. Nd2 {[%clk 0:02:56.1]} 17... f5 {[%clk 0:02:38.2]} 18. Be5
{[%clk 0:02:53.9]} 18... Re8 {[%clk 0:02:29.2]} 19. Nb3 {[%clk 0:02:53.6]} 19...
Nb4 {[%clk 0:01:54.1]} 20. Bxg7 {[%clk 0:02:41.4]} 20... Rxe1+ {[%clk
0:01:50.5]} 21. Rxe1 {[%clk 0:02:42.3]} 21... Kxg7 {[%clk 0:01:51.3]} 22. Re5
{[%clk 0:02:15.3]} 22... b6 {[%clk 0:01:48.3]} 23. Nd2 {[%clk 0:02:12.3]} 23...
Qd7 {[%clk 0:01:39.6]} 24. Nf3 {[%clk 0:02:12.4]} 24... Re8 {[%clk 0:01:31.5]}
25. Qe2 {[%clk 0:02:12.4]} 25... Rxe5 {[%clk 0:01:06.5]} 26. Qxe5+ {[%clk
0:02:13.3]} 26... f6 {[%clk 0:01:06.6]} 27. Qb8 {[%clk 0:02:08.9]} 27... Nd5
{[%clk 0:01:06.8]} 28. b3 {[%clk 0:02:01.2]} 28... g5 {[%clk 0:01:01.8]} 29. Nd2
{[%clk 0:01:54.5]} 29... Qe7 {[%clk 0:00:50.4]} 30. Nf1 {[%clk 0:01:49.5]} 30...
Qc7 {[%clk 0:00:46.9]} 31. Qe8 {[%clk 0:01:48.6]} 31... Qd6 {[%clk 0:00:43.6]}
32. Ng3 {[%clk 0:01:47.2]} 32... Ne7 {[%clk 0:00:32.3]} 33. Nh5+ {[%clk
0:01:44.7]} 33... Kh6 {[%clk 0:00:32.3]} 34. Qf7 {[%clk 0:01:45.1]} 34... Qxd4
{[%clk 0:00:28.7]} 35. Qg7+ {[%clk 0:01:43.4]} 1-0

[Event "*** Titled Tuesday Blitz"]
[Site "Chess.com"]
[Date "2020.11.03"]
[Round "4"]
[White "sboshaon21"]
[Black "tk22h"]
[Result "0-1"]
[WhiteElo "2034"]
[BlackElo "2379"]
[TimeControl "180+1"]
[EndTime "10:40:10 PST"]
[Termination "tk22h won by checkmate"]

1. d4 {[%clk 0:03:00.9]} 1... Nf6 {[%clk 0:02:56.4]} 2. c3 {[%clk 0:03:00.1]}
2... d5 {[%clk 0:02:55.6]} 3. g3 {[%clk 0:02:48.8]} 3... g6 {[%clk 0:02:55.8]}
4. Bg2 {[%clk 0:02:49.1]} 4... Bg7 {[%clk 0:02:56.4]} 5. Nf3 {[%clk 0:02:49.6]}
5... O-O {[%clk 0:02:56.9]} 6. O-O {[%clk 0:02:50]} 6... b6 {[%clk 0:02:57.4]}
7. h3 {[%clk 0:02:30.5]} 7... Bb7 {[%clk 0:02:56.4]} 8. Be3 {[%clk 0:02:30.3]}
8... Nbd7 {[%clk 0:02:53.7]} 9. Qc1 {[%clk 0:02:18]} 9... Re8 {[%clk 0:02:52.8]}
10. Bh6 {[%clk 0:02:16.8]} 10... e5 {[%clk 0:02:52.5]} 11. Bxg7 {[%clk
0:02:15.4]} 11... Kxg7 {[%clk 0:02:52]} 12. dxe5 {[%clk 0:02:11.1]} 12... Nxe5
{[%clk 0:02:52.9]} 13. Re1 {[%clk 0:01:37.1]} 13... Qd6 {[%clk 0:02:50.7]} 14.
Nbd2 {[%clk 0:01:35.5]} 14... Nxf3+ {[%clk 0:02:48.8]} 15. Nxf3 {[%clk
0:01:34.1]} 15... c5 {[%clk 0:02:48.5]} 16. Qc2 {[%clk 0:01:20.9]} 16... Rad8
{[%clk 0:02:47.8]} 17. Rad1 {[%clk 0:01:20.1]} 17... h6 {[%clk 0:02:43.8]} 18.
e3 {[%clk 0:01:10.7]} 18... Qe6 {[%clk 0:02:42.9]} 19. Kh2 {[%clk 0:01:02.4]}
19... Ne4 {[%clk 0:02:41.3]} 20. Re2 {[%clk 0:00:50.4]} 20... Qf6 {[%clk
0:02:37.9]} 21. Nd2 {[%clk 0:00:34.7]} 21... Nd6 {[%clk 0:02:25.6]} 22. c4
{[%clk 0:00:20.2]} 22... d4 {[%clk 0:02:16.4]} 23. Bxb7 {[%clk 0:00:17.4]} 23...
Nxb7 {[%clk 0:02:14.4]} 24. Nf1 {[%clk 0:00:14.7]} 24... Na5 {[%clk 0:01:59.5]}
25. exd4 {[%clk 0:00:13.3]} 25... Rxe2 {[%clk 0:01:58.3]} 26. Qxe2 {[%clk
0:00:12.9]} 26... Rxd4 {[%clk 0:01:58.7]} 27. Ne3 {[%clk 0:00:10.4]} 27... Nc6
{[%clk 0:01:56.4]} 28. Rd2 {[%clk 0:00:06.9]} 28... Rxd2 {[%clk 0:01:53.4]} 29.
Qxd2 {[%clk 0:00:07.3]} 29... Nd4 {[%clk 0:01:53.9]} 30. Kg2 {[%clk 0:00:06.5]}
30... Qc6+ {[%clk 0:01:52.9]} 31. Kf1 {[%clk 0:00:03.1]} 31... Qh1# {[%clk
0:01:50.2]} 0-1